fUST/lending_fUST_20240717
["ID","MTS","AMOUNT","RATE_DAILY","PERIOD"]
[332436174,1721181052795,-500.0,0.00022191,2]
[332436175,1721181052805,-503.96344794,0.00022191,2]
[332436176,1721181052817,-500.0,0.00022191,2]
[332436177,1721181052826,-500.0,0.00022191,2]
[332436178,1721181052835,-500.0,0.00022191,2]
[332436179,1721181052846,-500.0,0.00022191,2]
[332436180,1721181052856,-500.0,0.00022191,2]
[332436181,1721181052865,-500.37962165,0.00022191,2]
[332436182,1721181052875,-501.9472432,0.00022191,2]
[332436183,1721181052885,-500.0,0.00022191,2]
[332436184,1721181052895,-512.44777229,0.00022191,2]
[332436185,1721181052905,-500.0,0.00022191,2]
[332436186,1721181052916,-500.0,0.00022191,2]
[332436187,1721181052925,-500.0,0.00022191,2]
[332436188,1721181052936,-500.0,0.00022191,2]
[332436189,1721181052947,-500.0,0.00022191,2]
[332436190,1721181052958,-500.0,0.00022191,2]
[332436191,1721181052967,-473.65647247,0.00022191,2]
[332436192,1721181052978,-500.0,0.00022191,2]
[332436193,1721181052987,-500.0,0.00022191,2]
[332436194,1721181052997,-500.0,0.00022191,2]
[332436195,1721181053006,-500.0,0.00022191,2]
[332436196,1721181053016,-500.0,0.00022191,2]
[332436197,1721181053027,-500.0,0.00022191,2]
[332436198,1721181053037,-500.0,0.00022191,2]
[332436199,1721181053047,-500.0,0.00022191,2]
[332436200,1721181053056,-500.0,0.00022191,2]
[332436201,1721181053067,-500.0,0.00022191,2]
[332436202,1721181053076,-460.34221619,0.00022191,2]
[332436203,1721181053086,-500.0,0.00022191,2]
[332436204,1721181053096,-500.0,0.00022191,2]
[332436205,1721181053105,-503.35843911,0.00022191,2]
[332436206,1721181053114,-507.54049404,0.00022191,2]
[332436207,1721181053124,-500.0,0.00022191,2]
[332436208,1721181053134,-504.45785285,0.00022191,2]
[332436209,1721181053144,-500.0,0.00022191,2]
[332436210,1721181053154,-500.0,0.00022191,2]
[332436211,1721181053163,-504.10993778,0.00022191,2]
[332436212,1721181053173,-500.0,0.00022191,2]
[332436213,1721181053182,-500.0,0.00022191,2]
[332436214,1721181053192,-505.26508163,0.00022191,2]
[332436215,1721181053202,-500.0,0.00022191,2]
[332436216,1721181053211,-500.0,0.00022191,2]
[332436217,1721181053220,-500.0,0.00022191,2]
[332436218,1721181053230,-500.0,0.00022191,2]
[332436219,1721181053239,-500.0,0.00022191,2]
[332436220,1721181053252,-500.0,0.00022191,2]
[332436221,1721181053261,-500.0,0.00022191,2]
[332436222,1721181053271,-500.0,0.00022191,2]
[332436223,1721181053280,-500.0,0.00022191,2]
[332436224,1721181053290,-500.0,0.00022191,2]
[332436225,1721181053299,-500.0,0.00022191,2]
[332436226,1721181053309,-500.0,0.00022191,2]
[332436227,1721181053321,-500.0,0.00022191,2]
[332436228,1721181053331,-504.20734521,0.00022191,2]
[332436229,1721181053340,-500.0,0.00022191,2]
[332436230,1721181053350,-504.78343686,0.00022191,2]
[332436231,1721181053359,-500.0,0.00022191,2]
[332436232,1721181053368,-500.0,0.00022191,2]
[332436233,1721181053376,-500.0,0.00022191,2]
[332436234,1721181053385,-200.90056598,0.00022191,2]
[332436235,1721181158715,154.74467129,0.00014999,2]
[332436236,1721181171270,2065.94596846,0.00027397,120]
[332436237,1721181171301,6250.0,0.00027397,120]
[332436238,1721181171322,5001.37189712,0.00027397,120]
[332436239,1721181190502,7464.49874192,0.00014998,2]
[332436240,1721181308714,155.37791327,0.00014999,2]
[332436241,1721181432706,1042.40100828,0.00014999,2]
[332436242,1721181450492,154.74467129,0.00014999,2]
[332436245,1721181503839,176.605195,0.00015598,2]
[332436254,1721181631512,155.03285981,0.00014999,2]
[332436259,1721181827685,613.95373693,0.00015,2]
[332436260,1721181923864,2150.20332726,0.00014999,2]
[332436261,1721182035696,24900.0,0.00015252,2]
[332436262,1721182046302,176.605195,0.00015366,2]
[332436263,1721182046974,506.67785718,0.00014999,2]
[332436264,1721182086424,2674.2174896,0.00014999,2]
[332436265,1721182153270,585.4420536,0.00014999,2]
[332436266,1721182209743,527.70465206,0.00014999,2]
[332436267,1721182227471,528.72213347,0.00014999,2]
[332436291,1721182234121,-216.46534073,0.00016155,2]
[332436292,1721182234131,-300.0,0.00016244,2]
[332436293,1721182234142,-5680.34391874,0.00016245,2]
[332436294,1721182234153,-258.70000001,0.00016245,2]
[332436296,1721182234165,-10952.93637255,0.00016245,2]
[332436298,1721182234175,-2281.54246078,0.00016254,2]
[332436300,1721182234187,-398.8,0.00016254,2]
[332436412,1721182238795,-54629.09952943,0.00016254,2]
[332436413,1721182238804,-500.0,0.00016254,2]
[332436414,1721182238814,-623.04526085,0.00016254,2]
[332436415,1721182238823,-500.0,0.00016254,2]
[332436416,1721182238832,-500.0,0.00016254,2]
[332436417,1721182238842,-500.0,0.00016254,2]
[332436418,1721182238851,-500.0,0.00016254,2]
[332436419,1721182238860,-500.0,0.00016254,2]
[332436420,1721182238870,-500.0,0.00016254,2]
[332436421,1721182238879,-500.0,0.00016254,2]
[332436422,1721182238888,-500.0,0.00016254,2]
[332436423,1721182238897,-500.0,0.00016254,2]
[332436424,1721182238907,-34983.05229305,0.00016255,2]
[332436425,1721182238916,-42297.33181855,0.00016255,2]
[332436426,1721182238926,-2248.51879704,0.00016255,2]
[332436427,1721182238935,-277.01550922,0.00017531,2]
[332436428,1721182238944,-16891.9802913,0.00017858,2]
[332436429,1721182238954,-3144.6620016,0.00017868,2]
[332436430,1721182238963,-420.0,0.00017868,2]
[332436431,1721182238972,-154.74467129,0.00018798,2]
[332436432,1721182238981,-191.39935973,0.00018798,2]
[332436433,1721182238991,-154.9016304,0.00018899,2]
[332436434,1721182239000,-197.57665127,0.00019056,2]
[332436435,1721182239009,-309.21421881,0.00019165,2]
[332436436,1721182239019,-587.0,0.00019655,2]
[332436437,1721182239028,-246.95263272,0.0002,2]
[332436438,1721182239038,-192.29686214,0.0002,2]
[332436439,1721182239047,-435.0,0.0002,2]
[332436440,1721182239057,-174.15623839,0.0002,2]
[332436441,1721182239066,-293.89533444,0.0002,2]
[332436442,1721182239075,-228.33337167,0.00020543,2]
[332436443,1721182239085,-154.74467129,0.00020545,2]
[332436444,1721182239094,-576.3,0.00020669,2]
[332436445,1721182239103,-295.08989123,0.00021095,2]
[332436446,1721182239112,-285.0,0.00021095,2]
[332436447,1721182239121,-655.178036,0.00021096,2]
[332436448,1721182239130,-576.3,0.00021108,2]
[332436449,1721182239139,-576.3,0.00021547,2]
[332436450,1721182239149,-823.0,0.00021621,2]
[332436451,1721182239158,-1407.0,0.00021711,2]
[332436452,1721182239168,-160.0,0.0002177,3]
[332436453,1721182239177,-3000.0,0.000218,2]
[332436454,1721182239186,-3000.0,0.0002181,2]
[332436455,1721182239195,-216.46534072,0.00021817,2]
[332436456,1721182239204,-3000.0,0.0002182,2]
[332436457,1721182239214,-3000.0,0.0002183,2]
[332436458,1721182239223,-3000.0,0.0002184,2]
[332436459,1721182239231,-16891.9802913,0.00021849,3]
[332436460,1721182239241,-3000.0,0.0002185,2]
[332436461,1721182239250,-193.23738296,0.0002185,2]
[332436462,1721182239259,-3000.0,0.0002186,2]
[332436463,1721182239268,-3000.0,0.0002187,2]
[332436464,1721182239277,-3000.0,0.0002188,2]
[332436465,1721182239287,-3000.0,0.0002189,2]
[332436466,1721182239296,-3000.0,0.000219,2]
[332436467,1721182239306,-150.112233,0.000219,5]
[332436468,1721182239316,-150.112233,0.000219,3]
[332436469,1721182239325,-150.112233,0.000219,2]
[332436470,1721182239335,-500.0,0.00021906,2]
[332436471,1721182239506,-500.0,0.00021906,2]
[332436472,1721182239516,-500.0,0.00021906,2]
[332436473,1721182239525,-500.0,0.00021906,2]
[332436474,1721182239534,-375.67827851,0.00021906,2]
[332436475,1721182239544,-500.0,0.00021906,2]
[332436476,1721182239554,-267.15537015,0.00021906,2]
[332436477,1721182239563,-459.50222364,0.00021906,2]
[332436478,1721182239573,-500.0,0.00021906,2]
[332436479,1721182239582,-500.0,0.00021906,2]
[332436480,1721182239592,-500.0,0.00021906,2]
[332436481,1721182239605,-500.0,0.00021906,2]
[332436482,1721182239614,-500.0,0.00021906,2]
[332436483,1721182239624,-500.0,0.00021906,2]
[332436484,1721182239634,-201.26100846,0.00021906,2]
[332436485,1721182239643,-500.0,0.00021906,2]
[332436486,1721182239652,-500.0,0.00021906,2]
[332436487,1721182239661,-16891.9802913,0.00021907,3]
[332436488,1721182239672,-14887.89693386,0.00021907,3]
[332436506,1721182242080,-120247.94539614,0.00021907,3]
[332436507,1721182242093,-16891.9802913,0.00021908,3]
[332436508,1721182242103,-3000.0,0.0002191,2]
[332436509,1721182242114,-29476.1266649,0.00021917,5]
[332436510,1721182242124,-1067.07630449,0.00021917,2]
[332436511,1721182242135,-567.78899762,0.00021917,2]
[332436512,1721182242145,-506.38974591,0.00021917,2]
[332436513,1721182242156,-500.0,0.00021917,2]
[332436514,1721182242165,-500.0,0.00021917,2]
[332436515,1721182242175,-502.52620684,0.00021917,2]
[332436516,1721182242184,-500.0,0.00021917,2]
[332436517,1721182242193,-508.42466005,0.00021917,2]
[332436518,1721182242203,-500.0,0.00021917,2]
[332436519,1721182242212,-500.0,0.00021917,2]
[332436520,1721182242221,-553.61037358,0.00021917,2]
[332436521,1721182242231,-530.74407316,0.00021917,2]
[332436522,1721182242240,-500.0,0.00021917,2]
[332436523,1721182242249,-500.0,0.00021917,2]
[332436524,1721182242258,-500.0,0.00021917,2]
[332436525,1721182242267,-515.54752574,0.00021917,2]
[332436526,1721182242277,-500.0,0.00021917,2]
[332436527,1721182242286,-500.0,0.00021917,2]
[332436528,1721182242296,-545.55358474,0.00021917,2]
[332436529,1721182242306,-500.0,0.00021917,2]
[332436530,1721182242315,-500.0,0.00021917,2]
[332436531,1721182242324,-500.0,0.00021917,2]
[332436532,1721182242333,-500.0,0.00021917,2]
[332436533,1721182242342,-500.0,0.00021917,2]
[332436534,1721182242351,-500.0,0.00021917,2]
[332436535,1721182242361,-500.0,0.00021917,2]
[332436536,1721182242370,-500.0,0.00021917,2]
[332436537,1721182242380,-504.78343686,0.00021917,2]
[332436538,1721182242389,-500.0,0.00021917,2]
[332436539,1721182242398,-500.0,0.00021917,2]
[332436540,1721182242408,-500.0,0.00021917,2]
[332436541,1721182242417,-500.0,0.00021917,2]
[332436542,1721182242426,-500.0,0.00021917,2]
[332436543,1721182242435,-547.90313011,0.00021917,2]
[332436544,1721182242444,-500.0,0.00021917,2]
[332436545,1721182242453,-500.0,0.00021917,2]
[332436546,1721182242464,-500.0,0.00021917,2]
[332436547,1721182242474,-500.0,0.00021917,2]
[332436548,1721182242483,-500.0,0.00021917,2]
[332436549,1721182242492,-502.58269157,0.00021917,2]
[332436550,1721182242501,-500.0,0.00021917,2]
[332436551,1721182242510,-500.0,0.00021917,2]
[332436552,1721182242519,-500.0,0.00021917,2]
[332436553,1721182242528,-500.0,0.00021917,2]
[332436554,1721182242538,-313.83821788,0.00021917,2]
[332436555,1721182242547,-504.05688905,0.00021917,2]
[332436556,1721182242556,-500.0,0.00021917,2]
[332436557,1721182242566,-500.0,0.00021917,2]
[332436558,1721182242575,-500.0,0.00021917,2]
[332436559,1721182242584,-504.92971963,0.00021917,2]
[332436560,1721182242594,-501.45199416,0.00021917,2]
[332436561,1721182242606,-500.0,0.00021917,2]
[332436562,1721182242615,-518.93945252,0.00021917,2]
[332436563,1721182242624,-500.0,0.00021917,2]
[332436564,1721182242633,-500.0,0.00021917,2]
[332436565,1721182242642,-500.0,0.00021917,2]
[332436566,1721182242651,-503.41197868,0.00021917,2]
[332436567,1721182242660,-500.0,0.00021917,2]
[332436568,1721182242670,-500.0,0.00021917,2]
[332436569,1721182242682,-500.0,0.00021917,2]
[332436570,1721182242692,-500.0,0.00021917,2]
[332436571,1721182242701,-508.74014044,0.00021917,2]
[332436572,1721182242710,-575.34229989,0.00021917,2]
[332436573,1721182242720,-524.81603666,0.00021917,2]
[332436574,1721182242729,-500.0,0.00021917,2]
[332436575,1721182242743,-500.0,0.00021917,2]
[332436576,1721182242756,-500.0,0.00021917,2]
[332436577,1721182242770,-502.97136074,0.00021917,2]
[332436578,1721182242783,-528.62653309,0.00021917,2]
[332436579,1721182242797,-500.0,0.00021917,2]
[332436580,1721182242809,-500.0,0.00021917,2]
[332436581,1721182242823,-500.0,0.00021917,2]
[332436582,1721182242834,-500.0,0.00021917,2]
[332436583,1721182242848,-562.19395702,0.00021917,2]
[332436584,1721182242861,-615.87042034,0.00021917,2]
[332436585,1721182242875,-500.0,0.00021917,2]
[332436586,1721182242888,-501.67529165,0.00021917,2]
[332436587,1721182242901,-540.98463412,0.00021917,2]
[332436588,1721182242917,-500.0,0.00021917,2]
[332436589,1721182242931,-500.0,0.00021917,2]
[332436590,1721182242947,-500.0,0.00021917,2]
[332436591,1721182242961,-500.0,0.00021917,2]
[332436592,1721182242972,-548.85152488,0.00021917,2]
[332436593,1721182242986,-2849.93,0.00021917,2]
[332436594,1721182242999,-518.13133309,0.00021917,2]
[332436595,1721182243012,-516.80347284,0.00021917,2]
[332436596,1721182243025,-1601.28,0.00021917,2]
[332436597,1721182243039,-500.0,0.00021917,2]
[332436599,1721182243050,-502.81409546,0.00021917,2]
[332436600,1721182243061,-515.23946309,0.00021917,2]
[332436601,1721182243074,-500.0,0.00021917,2]
[332436602,1721182243087,-500.0,0.00021917,2]
[332436603,1721182243101,-500.0,0.00021917,2]
[332436604,1721182243115,-500.0,0.00021917,2]
[332436605,1721182243127,-500.0,0.00021917,2]
[332436606,1721182243140,-512.44777229,0.00021917,2]
[332436608,1721182243153,-500.0,0.00021917,2]
[332436610,1721182243166,-500.0,0.00021917,2]
[332436613,1721182243179,-500.0,0.00021917,2]
[332436615,1721182243190,-500.0,0.00021917,2]
[332436617,1721182243201,-500.0,0.00021917,2]
[332436619,1721182243211,-500.0,0.00021917,2]
[332436621,1721182243221,-500.0,0.00021917,2]
[332436623,1721182243232,-500.0,0.00021917,2]
[332436627,1721182243244,-500.0,0.00021917,2]
[332436629,1721182243256,-500.0,0.00021917,2]
[332436632,1721182243270,-500.0,0.00021917,2]
[332436635,1721182243281,-502.94451876,0.00021917,2]
[332436639,1721182243291,-496.96400295,0.00021917,2]
[332436642,1721182243305,-500.0,0.00021917,2]
[332436644,1721182243316,-473.65647247,0.00021917,2]
[332436647,1721182243329,-500.0,0.00021917,2]
[332436650,1721182243341,-500.37962165,0.00021917,2]
[332436655,1721182243352,-500.0,0.00021917,2]
[332436658,1721182243362,-500.0,0.00021917,2]
[332436661,1721182243373,-500.0,0.00021917,2]
[332436663,1721182243384,-222.40350074,0.00021917,2]
[332436665,1721182243395,-500.0,0.00021917,2]
[332436667,1721182243406,-339.54805897,0.00021917,2]
[332436669,1721182243417,-500.0,0.00021917,2]
[332436672,1721182243430,-500.0,0.00021917,2]
[332436674,1721182243440,-500.0,0.00021917,2]
[332436676,1721182243451,-502.82370706,0.00021917,2]
[332436678,1721182243462,-500.0,0.00021917,2]
[332436680,1721182243473,-505.91345321,0.00021917,2]
[332436682,1721182243484,-500.0,0.00021917,2]
[332436684,1721182243495,-500.0,0.00021917,2]
[332436687,1721182243505,-500.0,0.00021917,2]
[332436690,1721182243518,-500.0,0.00021917,2]
[332436692,1721182243529,-503.49634691,0.00021917,2]
[332436695,1721182243542,-500.0,0.00021917,2]
[332436700,1721182243554,-500.0,0.00021917,2]
[332436702,1721182243565,-500.0,0.00021917,2]
[332436704,1721182243577,-500.0,0.00021917,2]
[332436706,1721182243588,-500.0,0.00021917,2]
[332436708,1721182243602,-500.0,0.00021917,2]
[332436710,1721182243613,-505.68230765,0.00021917,2]
[332436712,1721182243624,-500.0,0.00021917,2]
[332436713,1721182243636,-500.0,0.00021917,2]
[332436715,1721182243648,-500.0,0.00021917,2]
[332436717,1721182243660,-511.73100881,0.00021917,2]
[332436719,1721182243672,-500.0,0.00021917,2]
[332436721,1721182243683,-500.0,0.00021917,2]
[332436723,1721182243695,-500.0,0.00021917,2]
[332436725,1721182243706,-500.0,0.00021917,2]
[332436728,1721182243718,-460.34221619,0.00021917,2]
[332436731,1721182243729,-500.0,0.00021917,2]
[332436733,1721182243740,-500.88802684,0.00021917,2]
[332436736,1721182243751,-546.57152165,0.00021917,2]
[332436739,1721182243762,-500.0,0.00021917,2]
[332436742,1721182243774,-500.0,0.00021917,2]
[332436744,1721182243785,-500.0,0.00021917,2]
[332436746,1721182243800,-500.0,0.00021917,2]
[332436748,1721182243811,-581.08219485,0.00021917,2]
[332436750,1721182243822,-509.88744892,0.00021917,2]
[332436751,1721182243834,-500.0,0.00021917,2]
[332436753,1721182243845,-500.0,0.00021917,2]
[332436755,1721182243856,-508.58291982,0.00021917,2]
[332436758,1721182243868,-500.0,0.00021917,2]
[332436760,1721182243879,-577.13763981,0.00021917,2]
[332436762,1721182243890,-598.29583107,0.00021917,2]
[332436764,1721182243901,-500.0,0.00021917,2]
[332436766,1721182243911,-500.0,0.00021917,2]
[332436768,1721182243922,-505.78944937,0.00021917,2]
[332436770,1721182243933,-500.0,0.00021917,2]
[332436772,1721182243943,-500.0,0.00021917,2]
[332436774,1721182243955,-500.0,0.00021917,2]
[332436776,1721182243968,-507.6742072,0.00021917,2]
[332436778,1721182243980,-514.61820134,0.00021917,2]
[332436779,1721182243991,-500.0,0.00021917,2]
[332436781,1721182244002,-500.0,0.00021917,2]
[332436783,1721182244013,-505.24937632,0.00021917,2]
[332436785,1721182244026,-519.94911542,0.00021917,2]
[332436787,1721182244037,-500.0,0.00021917,2]
[332436789,1721182244049,-200.90056598,0.00021917,2]
[332436791,1721182244060,-505.1986384,0.00021917,2]
[332436793,1721182244072,-500.0,0.00021917,2]
[332436795,1721182244084,-500.0,0.00021917,2]
[332436797,1721182244095,-500.0,0.00021917,2]
[332436799,1721182244107,-517.35164914,0.00021917,2]
[332436801,1721182244118,-500.0,0.00021917,2]
[332436803,1721182244129,-500.0,0.00021917,2]
[332436805,1721182244140,-500.0,0.00021917,2]
[332436807,1721182244151,-536.62897288,0.00021917,2]
[332436809,1721182244162,-573.2945138,0.00021917,2]
[332436811,1721182244173,-500.0,0.00021917,2]
[332436812,1721182244184,-511.36376727,0.00021917,2]
[332436813,1721182244195,-500.0,0.00021917,2]
[332436814,1721182244207,-500.0,0.00021917,2]
[332436815,1721182244218,-416.36063986,0.00021917,2]
[332436817,1721182244229,-500.0,0.00021917,2]
[332436818,1721182244240,-500.0,0.00021917,2]
[332436821,1721182244253,-500.0,0.00021917,2]
[332436823,1721182244265,-531.85462755,0.00021917,2]
[332436825,1721182244276,-500.0,0.00021917,2]
[332436827,1721182244287,-501.63759292,0.00021917,2]
[332436829,1721182244299,-500.0,0.00021917,2]
[332436830,1721182244310,-500.0,0.00021917,2]
[332436831,1721182244321,-500.0,0.00021917,2]
[332436832,1721182244332,-500.0,0.00021917,2]
[332436833,1721182244344,-500.0,0.00021917,2]
[332436834,1721182244355,-500.0,0.00021917,2]
[332436835,1721182244367,-500.0,0.00021917,2]
[332436836,1721182244378,-500.0,0.00021917,2]
[332436837,1721182244390,-500.0,0.00021917,2]
[332436838,1721182244402,-500.0,0.00021917,2]
[332436839,1721182244413,-500.0,0.00021917,2]
[332436840,1721182244425,-500.0,0.00021917,2]
[332436841,1721182244436,-500.0,0.00021917,2]
[332436842,1721182244447,-500.0,0.00021917,2]
[332436843,1721182244458,-500.0,0.00021917,2]
[332436844,1721182244470,-500.0,0.00021917,2]
[332436845,1721182244675,-501.31863594,0.00021917,2]
[332436846,1721182244694,-500.0,0.00021917,2]
[332436847,1721182244706,-500.0,0.00021917,2]
[332436848,1721182244716,-500.0,0.00021917,2]
[332436849,1721182244726,-505.56,0.00021917,2]
[332436850,1721182244738,-500.0,0.00021917,2]
[332436851,1721182244749,-500.0,0.00021917,2]
[332436852,1721182244759,-505.56,0.00021917,2]
[332436853,1721182244768,-505.56,0.00021917,2]
[332436854,1721182244778,-505.56,0.00021917,2]
[332436855,1721182244788,-505.56,0.00021917,2]
[332436856,1721182244798,-505.56,0.00021917,2]
[332436857,1721182244808,-505.56,0.00021917,2]
[332436858,1721182244817,-505.56,0.00021917,2]
[332436859,1721182244827,-500.0,0.00021917,2]
[332436860,1721182244836,-500.0,0.00021917,2]
[332436861,1721182244846,-505.56,0.00021917,2]
[332436862,1721182244856,-505.56,0.00021917,2]
[332436863,1721182244865,-505.56,0.00021917,2]
[332436864,1721182244875,-505.56,0.00021917,2]
[332436865,1721182244884,-505.56,0.00021917,2]
[332436866,1721182244894,-505.56,0.00021917,2]
[332436867,1721182244905,-505.56,0.00021917,2]
[332436868,1721182244915,-505.56,0.00021917,2]
[332436869,1721182244926,-505.56,0.00021917,2]
[332436870,1721182244937,-505.56,0.00021917,2]
[332436871,1721182244949,-505.56,0.00021917,2]
[332436872,1721182244960,-500.0,0.00021917,2]
[332436873,1721182244969,-500.0,0.00021917,2]
[332436874,1721182244979,-500.0,0.00021917,2]
[332436875,1721182244990,-500.0,0.00021917,2]
[332436876,1721182245001,-500.0,0.00021917,2]
[332436877,1721182245013,-500.0,0.00021917,2]
[332436878,1721182245024,-500.0,0.00021917,2]
[332436879,1721182245033,-500.0,0.00021917,2]
[332436880,1721182245047,-500.0,0.00021917,2]
[332436881,1721182245056,-1556.07,0.00021917,2]
[332436882,1721182245066,-500.0,0.00021917,2]
[332436883,1721182245076,-502.2690887,0.00021917,2]
[332436884,1721182245085,-500.0,0.00021917,2]
[332436885,1721182245095,-500.0,0.00021917,2]
[332436886,1721182245104,-500.0,0.00021917,2]
[332436887,1721182245114,-500.0,0.00021917,2]
[332436888,1721182245123,-500.0,0.00021917,2]
[332436889,1721182245133,-500.49192096,0.00021917,2]
[332436890,1721182245142,-500.0,0.00021917,2]
[332436891,1721182245151,-500.0,0.00021917,2]
[332436892,1721182245161,-500.0,0.00021917,2]
[332436893,1721182245171,-500.0,0.00021917,2]
[332436894,1721182245180,-500.0,0.00021917,2]
[332436895,1721182245190,-500.0,0.00021917,2]
[332436896,1721182245199,-500.0,0.00021917,2]
[332436897,1721182245208,-500.0,0.00021917,2]
[332436898,1721182245217,-500.0,0.00021917,2]
[332436899,1721182245227,-500.0,0.00021917,2]
[332436900,1721182245237,-500.0,0.00021917,2]
[332436901,1721182245246,-500.0,0.00021917,2]
[332436902,1721182245256,-500.0,0.00021917,2]
[332436903,1721182245266,-500.0,0.00021917,2]
[332436904,1721182245276,-618.04249564,0.00021917,2]
[332436905,1721182245285,-500.0,0.00021917,2]
[332436906,1721182245297,-550.19818618,0.00021917,2]
[332436907,1721182245307,-500.0,0.00021917,2]
[332436908,1721182245318,-500.0,0.00021917,2]
[332436909,1721182245328,-500.0,0.00021917,2]
[332436910,1721182245337,-500.0,0.00021917,2]
[332436911,1721182245346,-500.0,0.00021917,2]
[332436912,1721182245356,-500.0,0.00021917,2]
[332436913,1721182245366,-500.0,0.00021917,2]
[332436914,1721182245375,-500.0,0.00021917,2]
[332436915,1721182245387,-500.0,0.00021917,2]
[332436916,1721182245397,-500.0,0.00021917,2]
[332436917,1721182245407,-500.0,0.00021917,2]
[332436918,1721182245416,-500.0,0.00021917,2]
[332436919,1721182245426,-500.0,0.00021917,2]
[332436920,1721182245440,-500.0,0.00021917,2]
[332436921,1721182245449,-500.0,0.00021917,2]
[332436922,1721182245458,-501.54732919,0.00021917,2]
[332436923,1721182245467,-500.0,0.00021917,2]
[332436924,1721182245478,-500.0,0.00021917,2]
[332436925,1721182245487,-500.0,0.00021917,2]
[332436926,1721182245495,-500.0,0.00021917,2]
[332436927,1721182245504,-500.0,0.00021917,2]
[332436928,1721182245514,-501.15104022,0.00021917,2]
[332436929,1721182245523,-500.0,0.00021917,2]
[332436930,1721182245533,-500.0,0.00021917,2]
[332436931,1721182245544,-565.88,0.00021917,2]
[332436932,1721182245554,-500.0,0.00021917,2]
[332436933,1721182245563,-500.0,0.00021917,2]
[332436934,1721182245573,-500.0,0.00021917,2]
[332436935,1721182245582,-507.77035777,0.00021917,2]
[332436936,1721182245593,-500.0,0.00021917,2]
[332436937,1721182245606,-500.0,0.00021917,2]
[332436938,1721182245615,-511.96538163,0.00021917,2]
[332436939,1721182245624,-500.0,0.00021917,2]
[332436940,1721182245634,-500.0,0.00021917,2]
[332436941,1721182245643,-500.0,0.00021917,2]
[332436942,1721182245653,-500.0,0.00021917,2]
[332436943,1721182245662,-500.0,0.00021917,2]
[332436944,1721182245674,-500.0,0.00021917,2]
[332436945,1721182245683,-500.0,0.00021917,2]
[332436946,1721182245693,-500.0,0.00021917,2]
[332436947,1721182245703,-500.0,0.00021917,2]
[332436948,1721182245712,-500.0,0.00021917,2]
[332436949,1721182245722,-500.0,0.00021917,2]
[332436950,1721182245731,-500.0,0.00021917,2]
[332436951,1721182245740,-500.0,0.00021917,2]
[332436952,1721182245750,-500.0,0.00021917,2]
[332436953,1721182245759,-500.0,0.00021917,2]
[332436954,1721182245769,-368.72532816,0.00021917,2]
[332436955,1721182245778,-500.0,0.00021917,2]
[332436956,1721182245790,-500.0,0.00021917,2]
[332436957,1721182245800,-500.0,0.00021917,2]
[332436958,1721182245809,-500.0,0.00021917,2]
[332436959,1721182245818,-500.0,0.00021917,2]
[332436960,1721182245828,-500.0,0.00021917,2]
[332436961,1721182245837,-500.0,0.00021917,2]
[332436962,1721182245847,-500.0,0.00021917,2]
[332436963,1721182245856,-502.44052378,0.00021917,2]
[332436964,1721182245866,-500.24157953,0.00021917,2]